fUST/lending_fUST_20250502
["ID","MTS","AMOUNT","RATE_DAILY","PERIOD"]
[359582979,1746145832884,-500.0,0.00021435,2]
[359582980,1746145832893,-500.0,0.00021435,2]
[359582981,1746145832903,-500.0,0.00021435,2]
[359582982,1746145832913,-500.0,0.00021435,2]
[359582983,1746145832923,-500.0,0.00021435,2]
[359582984,1746145832933,-500.0,0.00021435,2]
[359582985,1746145832944,-500.0,0.00021435,2]
[359582986,1746145832958,-250.0,0.00021435,2]
[359582987,1746145832968,-22036.4311643,0.00021441,2]
[359582988,1746145832979,-1631.21595529,0.00021704,2]
[359582989,1746145832989,-152.0,0.00021768,2]
[359582990,1746145832999,-314.64889956,0.0002189,2]
[359582991,1746145833009,-314.64889956,0.00021932,2]
[359582992,1746145833019,-160.0,0.0002204,2]
[359582993,1746145833030,-3319.8751357,0.00022076,2]
[359582994,1746145833041,-500.0,0.00022563,2]
[359582995,1746145833052,-189.3412209,0.000229,2]
[359582996,1746145833063,-5456.5214983,0.000229,8]
[359582997,1746145833074,-2306.2867454,0.00023,2]
[359582998,1746145833084,-545.0,0.00023029,2]
[359582999,1746145833095,-403.0,0.00023029,2]
[359583000,1746145833106,-403.0,0.00023029,2]
[359583001,1746145833118,-420.0,0.00023305,2]
[359583002,1746145833129,-160.0,0.00023316,3]
[359583003,1746145833141,-160.0,0.00023363,4]
[359583004,1746145833152,-1137.7776405,0.000234,2]
[359583005,1746145833164,-160.0,0.0002341,5]
[359583006,1746145833175,-160.0,0.00023458,6]
[359583007,1746145833187,-160.0,0.00023505,7]
[359583008,1746145833204,-5456.52149803,0.00023521,9]
[359583009,1746145833221,-160.0,0.00023552,8]
[359583010,1746145833232,-160.0,0.00023599,9]
[359583011,1746145833244,-161.17784274,0.00023599,5]
[359583012,1746145833255,-670.52751866,0.00023672,2]
[359583013,1746145833265,-500.0,0.0002375,2]
[359583014,1746145833276,-1631.21595523,0.00023755,2]
[359583015,1746145833286,-1571.89,0.00023762,3]
[359583016,1746145833298,-374.40044045,0.00023769,2]
[359583017,1746145833309,-386.98671633,0.00023769,2]
[359583018,1746145833321,-500.0,0.00023769,2]
[359583019,1746145833335,-156.39098455,0.00023769,2]
[359583020,1746145833345,-14448.7778675,0.0002377,3]
[359583021,1746145833356,-28337.20444536,0.00023771,2]
[359583022,1746145833383,-648.29137871,0.00023771,2]
[359583023,1746145833395,-273.44970584,0.00023771,2]
[359583029,1746145838198,-2245.0,0.00023029,2]
[359583030,1746145838208,-785.95,0.00023763,3]
[359583031,1746145838217,-421.6143928,0.00023771,2]
[359583067,1746145841937,-0.01767462,0.00023771,2]
[359583085,1746145843425,-461.48744862,0.00023029,2]
[359583086,1746145843483,-245.51255138,0.00023029,2]
[359583087,1746145843496,-33739.42729644,0.00023771,2]
[359583088,1746145843507,-160.0,0.00023771,3]
[359583089,1746145843517,-8583.19388178,0.00023771,3]
[359583094,1746145846484,-4012.57455642,0.00023771,3]
[359583095,1746145846494,-841.10298755,0.00023772,3]
[359583096,1746145846504,-160.0,0.00023772,3]
[359583097,1746145846513,-160.0,0.00023772,3]
[359583098,1746145846523,-160.0,0.00023772,3]
[359583099,1746145846532,-160.0,0.00023772,3]
[359583100,1746145846542,-160.0,0.00023772,3]
[359583101,1746145846552,-421.4777418,0.00023772,3]
[359583102,1746145846561,-182.07995741,0.00023772,3]
[359583103,1746145846571,-151.0,0.00023772,7]
[359583104,1746145846581,-151.0,0.00023772,7]
[359583105,1746145846591,-151.0,0.00023772,7]
[359583106,1746145846601,-151.0,0.00023772,7]
[359583107,1746145846610,-151.0,0.00023772,7]
[359583108,1746145846619,-2223.583128,0.00023772,2]
[359583109,1746145846629,-2223.583128,0.00023772,2]
[359583110,1746145846638,-2223.583128,0.00023772,2]
[359583111,1746145846647,-2223.583128,0.00023772,2]
[359583112,1746145846657,-352.366206,0.00023772,7]
[359583113,1746145846666,-352.366206,0.00023772,7]
[359583114,1746145846676,-352.366206,0.00023772,7]
[359583115,1746145846686,-352.366206,0.00023772,7]
[359583116,1746145846695,-192.210027,0.00023772,7]
[359583117,1746145846705,-192.210027,0.00023772,7]
[359583118,1746145846717,-192.210027,0.00023772,7]
[359583119,1746145846726,-192.210027,0.00023772,7]
[359583120,1746145846736,-159.913763,0.00023772,7]
[359583121,1746145846746,-159.913763,0.00023772,7]
[359583122,1746145846755,-159.913763,0.00023772,7]
[359583123,1746145846765,-159.913763,0.00023772,7]
[359583124,1746145846775,-224.890363,0.00023772,7]
[359583125,1746145846785,-224.890363,0.00023772,7]
[359583126,1746145846795,-158.05158,0.00023772,7]
[359583127,1746145846805,-158.05158,0.00023772,7]
[359583128,1746145846815,-158.05158,0.00023772,7]
[359583129,1746145846825,-158.05158,0.00023772,7]
[359583130,1746145846834,-151.0,0.00023772,7]
[359583131,1746145846844,-151.0,0.00023772,7]
[359583132,1746145846853,-236.464599,0.00023772,7]
[359583133,1746145846862,-236.464599,0.00023772,7]
[359583134,1746145846872,-236.464599,0.00023772,7]
[359583135,1746145846881,-236.464599,0.00023772,7]
[359583136,1746145846890,-151.0,0.00023772,7]
[359583137,1746145846900,-151.0,0.00023772,7]
[359583138,1746145846909,-151.0,0.00023772,7]
[359583139,1746145846918,-151.0,0.00023772,7]
[359583140,1746145846927,-151.0,0.00023772,7]
[359583141,1746145846937,-151.0,0.00023772,7]
[359583142,1746145846947,-151.0,0.00023772,7]
[359583143,1746145846961,-151.0,0.00023772,7]
[359583144,1746145846971,-226.725964,0.00023772,7]
[359583145,1746145846981,-226.725964,0.00023772,7]
[359583146,1746145846991,-226.725964,0.00023772,7]
[359583147,1746145847000,-226.725964,0.00023772,7]
[359583148,1746145847009,-3119.70253112,0.00023773,2]
[359583149,1746146513140,3000.0,0.00025,30]
[359583170,1746147032448,-290.829,0.00021572,2]
[359583189,1746147032982,-131.07141544,0.00021572,2]
[359583190,1746147032992,-174.137678,0.00021849,2]
[359583191,1746147033001,-300.0,0.00022742,2]
[359583192,1746147033010,-500.0,0.00022742,2]
[359583193,1746147033019,-539.44072336,0.00022742,2]
[359583194,1746147033028,-633.64376856,0.00022742,2]
[359583195,1746147033038,-500.0,0.00022742,2]
[359583196,1746147033047,-500.0,0.00022742,2]
[359583197,1746147033057,-500.0,0.00022742,2]
[359583198,1746147033066,-500.0,0.00022742,2]
[359583199,1746147033076,-500.0,0.00022742,2]
[359583200,1746147033086,-460.33259707,0.00022742,2]
[359583201,1746147033095,-500.0,0.00022742,2]
[359583202,1746147033105,-500.0,0.00022742,2]
[359583203,1746147033115,-500.0,0.00022742,2]
[359583204,1746147033125,-500.0,0.00022742,2]
[359583205,1746147033135,-500.0,0.00022742,2]
[359583206,1746147033143,-500.0,0.00022742,2]
[359583207,1746147033153,-500.0,0.00022742,2]
[359583208,1746147033162,-500.0,0.00022742,2]
[359583209,1746147033171,-500.0,0.00022742,2]
[359583210,1746147033180,-500.0,0.00022742,2]
[359583211,1746147033189,-500.0,0.00022742,2]
[359583212,1746147033198,-500.0,0.00022742,2]
[359583213,1746147033208,-500.0,0.00022742,2]
[359583214,1746147033217,-23101.29301019,0.0002275,2]
[359583215,1746147033229,-1798.70698981,0.0002275,2]
[359583216,1746147033238,-1223.41196644,0.000228,2]
[359583217,1746147033248,-150.0,0.000229,2]
[359583218,1746147033261,-302.72132018,0.00023,2]
[359583219,1746147033271,-2271.59126983,0.00023008,2]
[359583220,1746147033280,-362.0172928,0.00023562,2]
[359583221,1746147033289,-362.0172928,0.00023562,2]
[359583222,1746147033298,-596.82446266,0.00023572,2]
[359583223,1746147033307,-545.0,0.00023606,2]
[359583224,1746147033316,-707.0,0.00023606,2]
[359583225,1746147033325,-1867.74916524,0.00023606,2]
[359583226,1746147033389,-500.0,0.00022742,2]
[359583227,1746147033401,-542.43925604,0.00022742,2]
[359583228,1746147033411,-377.25083476,0.00023606,2]
[359583229,1746147033421,-150.0,0.00023606,2]
[359583230,1746147033431,-403.0,0.00023606,2]
[359583231,1746147033442,-150.0,0.00023606,2]
[359583232,1746147033452,-11360.56737352,0.00023649,2]
[359583233,1746147033462,-250.0,0.00023663,2]
[359583234,1746147033473,-232.62027977,0.00023669,2]
[359583235,1746147033483,-262.08030831,0.00023669,2]
[359583236,1746147033493,-500.0,0.00023669,2]
[359583237,1746147033503,-533.57659113,0.00023669,2]
[359583238,1746147033512,-270.89070143,0.00023669,2]
[359583239,1746147033523,-162.83419583,0.00023669,2]
[359583240,1746147033532,-34541.0983526,0.0002367,2]
[359583241,1746147033545,-960.70052036,0.0002367,2]
[359583256,1746147038465,-500.0,0.00022742,2]
[359583257,1746147038475,-500.0,0.00022742,2]
[359583258,1746147038484,-150.0,0.00023606,2]
[359583259,1746147038493,-596.82446264,0.00023654,2]
[359583260,1746147038503,-487.20910797,0.00023662,3]
[359583261,1746147038515,-691.71089203,0.00023662,3]
[359583262,1746147038524,-8338.70373704,0.0002367,2]
[359583317,1746147043628,-150.0,0.00023606,2]
[359583318,1746147043638,-154.08987154,0.0002367,2]
[359583331,1746147388534,10000.0,0.00025,30]
[359583338,1746147707545,-150.0,0.0002157,2]
[359583339,1746147707575,-1820.8606175,0.00022384,2]
[359583340,1746147707598,-300.0,0.0002261,2]
[359583341,1746147707622,-162.25917745,0.00022611,2]
[359583342,1746147707650,-500.0,0.00022611,2]
[359583343,1746147707676,-500.0,0.00022611,2]
[359583344,1746147707702,-500.0,0.00022611,2]
[359583345,1746147707727,-477.07907212,0.00022611,2]
[359583346,1746147707751,-500.0,0.00022611,2]
[359583347,1746147707776,-500.0,0.00022611,2]
[359583348,1746147707803,-500.0,0.00022611,2]
[359583349,1746147707829,-500.0,0.00022611,2]
[359583350,1746147707855,-500.0,0.00022611,2]
[359583351,1746147707879,-3332.59113293,0.00022612,2]
[359583361,1746147937738,-2500.0,0.0002,2]
[359583363,1746148008178,-306.90141925,0.0002,2]
[359583396,1746148232678,-176.224806,0.00022316,2]
[359583398,1746148232689,-531.255194,0.00022511,2]
[359583401,1746148232703,-218.744806,0.00022511,2]
[359583403,1746148232713,-300.0,0.0002261,2]
[359583405,1746148232722,-497.45323023,0.00022611,2]
[359583407,1746148232731,-500.0,0.00022611,2]
[359583409,1746148232743,-500.0,0.00022611,2]
[359583411,1746148232753,-500.0,0.00022611,2]
[359583413,1746148232762,-500.0,0.00022611,2]
[359583415,1746148232772,-81.75589627,0.00022611,2]
[359583419,1746148232822,-168.24410373,0.00022611,2]
[359583420,1746148232831,-500.0,0.00022611,2]
[359583422,1746148232840,-12175.88404448,0.00022612,2]
[359583459,1746148247064,-6519.44735079,0.00022612,2]
[359583460,1746148247074,-245.72976436,0.00022642,2]
[359583461,1746148247083,-1335.16689424,0.00023,2]
[359583463,1746148247227,-0.00410518,0.00023,2]
[359583465,1746148466507,108574.73100194,0.00024,30]
[359583466,1746148484812,102467.55358765,0.00025,30]
[359583467,1746148490582,448.99,0.00020869,30]
[359583470,1746148908604,-4581.0,0.0002066,2]
[359583471,1746148983092,652.13,0.00025,30]
[359583473,1746149097167,5000.0,0.00021,10]
[359583474,1746149113586,5000.0,0.00021,10]
[359583475,1746149164649,-1000.0,0.00020239,2]
[359583493,1746149431827,-250.0,0.00019797,2]
[359583494,1746149431837,-231.84569023,0.00020037,2]
[359583501,1746149431954,-4768.15430977,0.00020037,2]
[359583502,1746149431964,-242.0,0.00020869,2]
[359583504,1746149431972,-181.414571,0.00021625,2]
[359583506,1746149431981,-514.67,0.00022,2]
[359583507,1746149431990,-500.0,0.00022,3]
[359583508,1746149432001,-500.0,0.00022,2]
[359583509,1746149432011,-500.0,0.00022,2]
[359583510,1746149432020,-500.0,0.00022,2]
[359583511,1746149432029,-22452.11197478,0.00022293,2]
[359583517,1746149437879,-500.0,0.00022292,2]
[359583518,1746149437888,-500.0,0.00022292,2]
[359583519,1746149437898,-500.0,0.00022292,2]
[359583520,1746149437907,-500.0,0.00022292,2]
[359583521,1746149437916,-500.0,0.00022292,2]
[359583522,1746149437925,-500.0,0.00022292,2]
[359583523,1746149437934,-500.0,0.00022292,2]
[359583524,1746149437944,-500.0,0.00022292,2]
[359583525,1746149437953,-500.0,0.00022292,2]
[359583526,1746149437963,-500.0,0.00022292,2]
[359583527,1746149437972,-500.0,0.00022292,2]
[359583528,1746149437982,-500.0,0.00022292,2]
[359583529,1746149437991,-500.0,0.00022292,2]
[359583530,1746149438001,-500.0,0.00022292,2]
[359583531,1746149438011,-500.0,0.00022292,2]
[359583532,1746149438020,-500.0,0.00022292,2]
[359583533,1746149438029,-500.0,0.00022292,2]
[359583534,1746149438040,-500.0,0.00022292,2]
[359583535,1746149438050,-500.0,0.00022292,2]
[359583536,1746149438059,-84.91585593,0.00022292,2]
[359583537,1746149438079,-415.08414407,0.00022292,2]
[359583538,1746149438089,-500.0,0.00022292,2]
[359583539,1746149438098,-272.1369109,0.00022292,2]
[359583577,1746149443194,-227.8630891,0.00022292,2]
[359583578,1746149443206,-500.0,0.00022292,2]
[359583579,1746149443215,-230.15600762,0.00022292,2]
[359583582,1746149443227,-269.84399238,0.00022292,2]
[359583583,1746149443237,-500.0,0.00022292,2]
[359583584,1746149443247,-500.0,0.00022292,2]
[359583585,1746149443258,-500.0,0.00022292,2]
[359583586,1746149443268,-208.09836917,0.00022292,2]
[359583599,1746149446066,-291.90163083,0.00022292,2]
[359583600,1746149446076,-500.0,0.00022292,2]
[359583601,1746149446084,-155.76836917,0.00022292,2]
[359583602,1746149446095,-349.54640654,0.00022292,2]
[359583603,1746149446104,-454.07926113,0.00022293,2]
[359583604,1746149446113,-2332.1961619,0.00022393,2]
[359583606,1746149446123,-4559.5013088,0.00022412,2]
[359583609,1746149446132,-370.0285966,0.00022541,2]
[359583611,1746149446141,-215.65861379,0.00022542,2]
[359583612,1746149446150,-510.9201579,0.00022599,2]
[359583613,1746149446159,-500.0,0.00022599,2]
[359583614,1746149446168,-528.09583765,0.00022599,2]
[359583615,1746149446178,-223.50361379,0.00022599,2]
[359583616,1746149446187,-608.2552947,0.000226,2]
[359583617,1746149446202,-1574.11479557,0.000226,7]
[359583618,1746149476396,200.8145146,0.00025,30]
[359583619,1746149574025,2055.7644686,0.00025,30]
[359583621,1746149688884,170.0,0.00025,120]
[359583634,1746150011358,5000.0,0.00021,10]
[359583636,1746150033325,150.0,0.00025,30]
[359583638,1746150432103,-106120.0,0.00021,2]
[359583691,1746150636389,-181.414571,0.00020003,2]
[359583692,1746150636399,-193.67527474,0.00020898,2]
[359583693,1746150636408,-193.67527473,0.00020899,2]
[359583694,1746150636417,-1312.72555697,0.000209,2]
[359583695,1746150636426,-277.31160406,0.00020998,2]
[359583696,1746150636439,-222.68839594,0.00020998,2]
[359583697,1746150636448,-474.1598624,0.00020998,2]
[359583698,1746150636457,-500.53147757,0.00020998,2]
[359583699,1746150636466,-500.0,0.00020998,2]
[359583701,1746150636475,-500.0,0.00020998,2]
[359583703,1746150636484,-500.0,0.00020998,2]
[359583705,1746150636493,-500.0,0.00020998,2]
[359583707,1746150636502,-500.0,0.00020998,2]
[359583709,1746150636511,-500.0,0.00020998,2]
[359583711,1746150636520,-300.0,0.00020998,2]
[359583713,1746150636529,-1200.0,0.00020998,2]
[359583715,1746150636538,-300.0,0.00020998,2]
[359583717,1746150636548,-2832.95562643,0.00020999,2]
[359583719,1746150636559,-8190.10146984,0.00020999,2]
[359583721,1746150636569,-378.35345212,0.00020999,2]
[359583722,1746150636578,-510.39295247,0.00020999,2]
[359583724,1746150636589,-78405.17279243,0.00021,2]
[359583725,1746150636598,-611.29233875,0.00021014,2]
[359583740,1746150638012,-560.33648088,0.00021014,2]
[359583742,1746150638021,-841.10298755,0.00021115,3]
[359583744,1746150638031,-2299.18794837,0.00021115,2]
[359583748,1746150638065,-8005.81729863,0.00021115,2]
[359583750,1746150638075,-151.0,0.00021115,2]
[359583753,1746150638085,-362.0172928,0.00021482,2]
[359583755,1746150638094,-245.96855738,0.00021649,2]
[359583757,1746150638105,-366.53759023,0.00021843,2]
[359583759,1746150638117,-805.09122937,0.00021843,2]
[359583761,1746150638127,-593.65155565,0.00021885,2]
[359583764,1746150638136,-473.20567173,0.00021918,2]
[359583766,1746150638146,-160.0,0.00021941,2]
[359583768,1746150638156,-1000.0,0.00021969,2]
[359583770,1746150638165,-200.02390477,0.00021969,2]
[359583772,1746150638175,-14565.69334101,0.00022,3]
[359583774,1746150638184,-6363.32910443,0.00022,2]
[359583777,1746150638200,-2994.87652079,0.00022,2]
[359583847,1746150640425,-11093.65638401,0.00022,2]
[359583882,1746150646682,-0.0940568,0.00022,2]
[359583883,1746150666975,155.0,0.00025,30]
[359583884,1746150713038,-300.0,0.00019999,2]
[359583885,1746150713062,-658.0351,0.0002,2]
[359583886,1746150746666,-300.0,0.00019999,2]
[359583887,1746150746687,-4281.0,0.0002,2]
[359583890,1746150779942,239.008531,0.00025,30]
[359583892,1746150947619,4676.71860316,0.00021,10]
[359584053,1746151832218,-300.0,0.00019999,2]
[359584054,1746151832230,-300.0,0.00019999,2]
[359584055,1746151832243,-212.0,0.00019999,2]
[359584056,1746151832255,-500.0,0.00019999,2]
[359584057,1746151832270,-500.0,0.00019999,2]
[359584058,1746151832287,-402.52259423,0.00019999,2]
[359584059,1746151832299,-38523.10729134,0.0002,2]
[359584574,1746151843366,-6.924e-05,0.0002,2]
[359585619,1746151913600,20000.0,0.00025,30]
[359585622,1746152157471,-1352.53685677,0.000199,2]
[359585623,1746152157492,-300.0,0.00019999,2]
[359585624,1746152157513,-7282.8466705,0.0002,3]
[359585625,1746152157536,-68675.11943366,0.0002,2]
[359585626,1746152157556,-13997.70902115,0.0002,2]
[359585627,1746152157575,-151.56153257,0.0002,2]
[359585628,1746152157595,-14360.22648535,0.0002,2]
[359585632,1746152220641,1500.0,0.00021,10]
[359585638,1746152469023,500.0,2.3e-05,2]
[359585646,1746152872884,152.07144303,0.000246,120]
[359585662,1746152927879,958.01289043,0.00015,2]
[359585826,1746153046583,-0.17170926,0.00019745,2]
[359585827,1746153183864,-181.24286174,0.00019745,2]
[359585828,1746153183886,-818.75713826,0.00019885,2]
[359585830,1746153254572,2198.891,0.00025,30]
[359585832,1746153377118,1000.0,0.00021,10]
[359585894,1746154232576,-3007.26,0.0001894,2]
[359586030,1746155261490,327.65,0.00025,30]
[359586055,1746155432692,-274.86773868,0.00018459,2]
[359586056,1746155432744,-590.50400582,0.00018459,2]
[359586057,1746155432755,-300.0,0.00018515,2]
[359586058,1746155432764,-500.0,0.00018516,2]
[359586059,1746155432774,-500.0,0.00018516,2]
[359586061,1746155432783,-373.69603909,0.00018516,2]
[359586062,1746155432793,-500.0,0.00018516,2]
[359586063,1746155432802,-500.0,0.00018516,2]
[359586064,1746155432811,-500.0,0.00018516,2]
[359586065,1746155432821,-22308.5342835,0.00018517,2]
[359586138,1746155443864,-2073.895929,0.00018517,2]
[359586139,1746155443874,-250.0,0.00018839,2]
[359586140,1746155443883,-290.2671146,0.0001907,2]
[359586141,1746155443893,-197.13060863,0.0001913,2]
[359586151,1746155693883,160.05,0.00021,10]
[359586235,1746156631870,-818.7571383,0.0001899,2]
[359586236,1746156631880,-182.880178,0.00019178,2]
[359586237,1746156631890,-682.0,0.00019872,2]
[359586238,1746156631900,-312.13242621,0.00019873,2]
[359586239,1746156631910,-500.0,0.00019873,2]
[359586240,1746156631919,-500.0,0.00019873,2]
[359586241,1746156631929,-500.0,0.00019873,2]
[359586242,1746156631938,-300.0,0.00019873,2]
[359586243,1746156631948,-500.0,0.00019873,2]
[359586244,1746156631958,-500.0,0.00019873,2]
[359586245,1746156631967,-500.0,0.00019873,2]
[359586246,1746156631977,-500.0,0.00019873,2]
[359586247,1746156631986,-500.0,0.00019873,2]
[359586248,1746156631996,-500.0,0.00019873,2]
[359586249,1746156632006,-1001.14143726,0.00019899,2]
[359586250,1746156632015,-500.0,0.00019899,2]
[359586251,1746156632025,-237.04691347,0.00019899,2]
[359586252,1746156632035,-462.21064181,0.00019899,2]
[359586253,1746156632047,-364.26533943,0.00019899,2]
[359586254,1746156632057,-3641.42333525,0.00019899,3]
[359586255,1746156632066,-11033.55354671,0.000199,2]
[359586256,1746156632078,-23304.00617012,0.000199,2]
[359586257,1746156632088,-112245.18074315,0.000199,2]
[359586258,1746156637772,-349.01028649,0.00019898,2]
[359586259,1746156637783,-500.0,0.00019898,2]
[359586260,1746156637793,-500.0,0.00019898,2]
[359586261,1746156637805,-500.0,0.00019898,2]
[359586262,1746156637817,-500.0,0.00019898,2]
[359586263,1746156637827,-500.0,0.00019898,2]
[359586264,1746156637838,-500.0,0.00019898,2]
[359586265,1746156637848,-500.0,0.00019898,2]
[359586266,1746156637858,-500.0,0.00019898,2]
[359586267,1746156637870,-500.0,0.00019898,2]
[359586268,1746156637880,-387.36960391,0.00019898,2]
[359586269,1746156637889,-500.0,0.00019898,2]
[359586271,1746156637899,-500.0,0.00019898,2]
[359586273,1746156637908,-500.0,0.00019898,2]
[359586275,1746156637917,-500.0,0.00019898,2]
[359586277,1746156637926,-318.56750952,0.00019898,2]
[359586314,1746156638165,-181.43249048,0.00019898,2]
[359586315,1746156638176,-500.0,0.00019898,2]
[359586316,1746156638186,-500.0,0.00019898,2]
[359586317,1746156638195,-16009.74954653,0.000199,2]
[359586318,1746156638227,-221.19133803,0.00019898,2]
[359586319,1746156638237,-4616.00701991,0.000199,2]
[359586332,1746156662884,1648.68,0.00025,30]
[359586336,1746156809920,-500.0,0.00019889,2]
[359586337,1746156809946,-265.26328932,0.00019889,2]
[359586338,1746156809974,-622.1191338,0.00019889,2]
[359586339,1746156810003,-500.0,0.00019889,2]
[359586340,1746156810026,-909.27872063,0.0001989,2]
[359586341,1746156810050,-9207.01,0.0001989,3]
[359586342,1746156810072,-4603.5,0.0001989,3]
[359586343,1746156810096,-2301.75,0.0001989,3]
[359586344,1746156810119,-1150.88,0.0001989,3]
[359586345,1746156810143,-575.44,0.0001989,3]
[359586346,1746156810166,-287.72,0.0001989,3]
[359586347,1746156810190,-863.18,0.0001989,3]
[359586348,1746156810213,-160.0,0.0001989,3]
[359586349,1746156810236,-12598.98820072,0.0001989,3]
[359586350,1746156810259,-151.0,0.00019899,2]
[359586351,1746156810281,-151.0,0.00019899,2]
[359586352,1746156810305,-151.0,0.00019899,2]
[359586353,1746156810328,-188.479435,0.00019899,2]
[359586354,1746156810351,-1820.71166763,0.000199,3]
[359586355,1746156810374,-82992.6795529,0.000199,2]
[359586551,1746157832161,-151.0,0.00018585,2]
[359586553,1746157832171,-150.0,0.000189,2]
[359586555,1746157832180,-218.98283096,0.00019228,2]
[359586557,1746157832189,-300.0,0.00019328,2]
[359586559,1746157832199,-20742.42815596,0.00019329,2]
[359586561,1746157832209,-218.98283096,0.0001968,2]
[359586564,1746157832218,-166.5272001,0.0001969,2]
[359586576,1746157832403,-1040.28023606,0.0001969,2]
[359586577,1746157832413,-230.85989127,0.0001969,2]
[359586578,1746157832422,-5430.52250169,0.0001978,2]
[359586694,1746159032309,-277.33618373,0.00018585,2]
[359586697,1746159032319,-150.0,0.000189,2]
[359586699,1746159032328,-183.456922,0.00019178,2]
[359586701,1746159032337,-1079.63323783,0.0001958,2]
[359586702,1746159032347,-3169.86458274,0.000196,2]
[359586703,1746159032356,-300.0,0.00019669,2]
[359586704,1746159032366,-604.9857376,0.00019669,2]
[359586705,1746159032376,-165.93283943,0.00019669,2]
[359586706,1746159032386,-323.54744927,0.00019669,2]
[359586707,1746159032395,-910.35583381,0.0001967,3]
[359586709,1746159032405,-35798.02066062,0.0001967,2]
[359586788,1746159043455,-500.0,0.00019669,2]
[359586789,1746159043467,-500.0,0.00019669,2]
[359586790,1746159043478,-500.0,0.00019669,2]
[359586791,1746159043488,-500.0,0.00019669,2]
[359586792,1746159043500,-500.0,0.00019669,2]
[359586793,1746159043510,-500.0,0.00019669,2]
[359586794,1746159043522,-458.32066819,0.00019669,2]
[359586795,1746159043532,-500.0,0.00019669,2]
[359586796,1746159043542,-500.0,0.00019669,2]
[359586797,1746159043552,-500.0,0.00019669,2]
[359586798,1746159043562,-423.63935187,0.00019669,2]
[359586799,1746159043573,-500.0,0.00019669,2]
[359586800,1746159043586,-500.0,0.00019669,2]
[359586801,1746159043597,-500.0,0.00019669,2]
[359586802,1746159043840,-500.0,0.00019669,2]
[359586803,1746159043850,-500.0,0.00019669,2]
[359586804,1746159043860,-500.0,0.00019669,2]
[359586805,1746159043871,-500.0,0.00019669,2]
[359586806,1746159043881,-500.0,0.00019669,2]
[359586807,1746159043891,-500.0,0.00019669,2]
[359586808,1746159043901,-500.0,0.00019669,2]
[359586809,1746159043910,-500.0,0.00019669,2]
[359586810,1746159043920,-500.0,0.00019669,2]
[359586811,1746159043929,-500.0,0.00019669,2]
[359586812,1746159043939,-26551.51905081,0.0001967,2]
[359586827,1746159263438,2002.0,0.00021,14]
[359586832,1746159288223,2133.0,0.00021,14]
[359586839,1746159652061,-3484.5164862,0.00018665,2]
[359586840,1746159652083,-250.8060418,0.00018685,2]
[359586841,1746159652106,-970.06851055,0.00019468,2]
[359586842,1746159652129,-1387.01077563,0.0001947,2]
[359586843,1746159652153,-250.0,0.0001956,2]
[359586844,1746159652179,-500.0,0.00019567,2]
[359586845,1746159652206,-500.0,0.00019567,2]
[359586846,1746159652233,-500.0,0.00019567,2]
[359586847,1746159652261,-349.59818582,0.00019567,2]
[359586853,1746159721004,-35.14134784,0.00019567,2]
[359586854,1746159721031,-500.0,0.00019567,2]
[359586855,1746159721058,-500.0,0.00019567,2]
[359586856,1746159721085,-500.0,0.00019567,2]
[359586857,1746159721115,-500.0,0.00019567,2]
[359586858,1746159721143,-500.0,0.00019567,2]
[359586859,1746159721165,-300.0,0.00019567,2]
[359586860,1746159721186,-226.48321449,0.00019568,2]